[Event "Late-Titled-Tuesday-Blitz-July-09-2024"]
[Site "Chess.com"]
[Date "2024.07.09"]
[Round "1"]
[White "rhungaski"]
[Black "Adrian-thorsen"]
[Result "1-0"]
[WhiteElo "2642"]
[BlackElo "2314"]
[TimeControl "180+1"]
[EndTime "14:06:45 PDT"]
[Termination "rhungaski won by resignation"]

1. Nf3 {[%clk 0:02:58.9]} 1... Nc6 {[%clk 0:02:58.5]} 2. g3 {[%clk 0:02:58.3]}
2... e5 {[%clk 0:02:57.3]} 3. d3 {[%clk 0:02:57.4]} 3... d5 {[%clk 0:02:57.1]}
4. Bg2 {[%clk 0:02:57.2]} 4... Be6 {[%clk 0:02:56.1]} 5. O-O {[%clk 0:02:51.5]}
5... f6 {[%clk 0:02:54.6]} 6. e4 {[%clk 0:02:47.2]} 6... d4 {[%clk 0:02:51.6]}
7. Nh4 {[%clk 0:02:40.2]} 7... Qd7 {[%clk 0:02:50]} 8. f4 {[%clk 0:02:39.3]}
8... O-O-O {[%clk 0:02:48.7]} 9. a3 {[%clk 0:02:15.3]} 9... h5 {[%clk
0:02:40.6]} 10. f5 {[%clk 0:02:14.1]} 10... Bf7 {[%clk 0:02:38.1]} 11. b4 {[%clk
0:02:12.8]} 11... Bd6 {[%clk 0:02:31.2]} 12. Nd2 {[%clk 0:02:09.3]} 12... Nge7
{[%clk 0:02:20.4]} 13. Nc4 {[%clk 0:02:09.4]} 13... g5 {[%clk 0:02:17.3]} 14.
fxg6 {[%clk 0:02:08.8]} 14... Nxg6 {[%clk 0:02:16.9]} 15. Nf5 {[%clk 0:02:05.8]}
15... Be6 {[%clk 0:02:13.9]} 16. b5 {[%clk 0:01:53.5]} 16... Nce7 {[%clk
0:02:12.9]} 17. b6 {[%clk 0:01:54.1]} 17... axb6 {[%clk 0:02:12.5]} 18. Nfxd6+
{[%clk 0:01:54.5]} 18... Qxd6 {[%clk 0:02:04.1]} 19. Nxd6+ {[%clk 0:01:50.3]}
19... Rxd6 {[%clk 0:02:05]} 20. h4 {[%clk 0:01:44.9]} 20... Bg4 {[%clk
0:02:03.2]} 21. Bf3 {[%clk 0:01:43.6]} 21... f5 {[%clk 0:02:02.7]} 22. Bxg4
{[%clk 0:01:41.1]} 22... fxg4 {[%clk 0:01:54.8]} 23. Bg5 {[%clk 0:01:39.3]}
23... Re8 {[%clk 0:01:35.9]} 24. Rf7 {[%clk 0:01:37.8]} 24... Nc6 {[%clk
0:01:32.8]} 25. Qf1 {[%clk 0:01:30.6]} 25... Nge7 {[%clk 0:00:36.9]} 26. Rf8
{[%clk 0:01:26.8]} 26... Rxf8 {[%clk 0:00:29.3]} 27. Qxf8+ {[%clk 0:01:27.7]}
27... Kd7 {[%clk 0:00:29.2]} 28. Rf1 {[%clk 0:01:22.2]} 28... b5 {[%clk
0:00:22.4]} 29. Rf7 {[%clk 0:01:12.9]} 29... Re6 {[%clk 0:00:20.8]} 30. Qh8
{[%clk 0:00:59.2]} 30... b4 {[%clk 0:00:17.3]} 31. axb4 {[%clk 0:00:58.5]} 31...
b5 {[%clk 0:00:17.2]} 32. Qxh5 {[%clk 0:00:55]} 32... Nxb4 {[%clk 0:00:14.5]}
33. Qxg4 {[%clk 0:00:54.8]} 33... Nc6 {[%clk 0:00:13.6]} 34. h5 {[%clk
0:00:53.3]} 34... Kd6 {[%clk 0:00:11.9]} 35. Bxe7+ {[%clk 0:00:52.2]} 35... Nxe7
{[%clk 0:00:12.8]} 36. Qg5 {[%clk 0:00:46.6]} 36... Nc6 {[%clk 0:00:11.5]} 37.
Rf6 {[%clk 0:00:46.7]} 37... Rxf6 {[%clk 0:00:10.4]} 38. Qxf6+ {[%clk
0:00:47.6]} 38... Kc5 {[%clk 0:00:11]} 39. h6 {[%clk 0:00:46.7]} 1-0

[Event "Late-Titled-Tuesday-Blitz-July-09-2024"]
[Site "Chess.com"]
[Date "2024.07.09"]
[Round "1"]
[White "miraitrunks"]
[Black "purpurice"]
[Result "0-1"]
[WhiteElo "2013"]
[BlackElo "2547"]
[TimeControl "180+1"]
[EndTime "14:06:45 PDT"]
[Termination "purpurice won by resignation"]

1. e4 {[%clk 0:02:58.2]} 1... c5 {[%clk 0:03:00.1]} 2. Nf3 {[%clk 0:02:58.6]}
2... d6 {[%clk 0:03:00.8]} 3. d4 {[%clk 0:02:58.6]} 3... cxd4 {[%clk 0:03:01.7]}
4. Nxd4 {[%clk 0:02:59.2]} 4... Nf6 {[%clk 0:03:02.4]} 5. f3 {[%clk 0:02:59.7]}
5... e5 {[%clk 0:03:01.4]} 6. Nb3 {[%clk 0:02:59.1]} 6... d5 {[%clk 0:03:00.6]}
7. exd5 {[%clk 0:02:57.4]} 7... Qxd5 {[%clk 0:02:56]} 8. Qxd5 {[%clk 0:02:57.2]}
8... Nxd5 {[%clk 0:02:56.9]} 9. Bc4 {[%clk 0:02:55.6]} 9... Nb6 {[%clk
0:02:56.1]} 10. Bb5+ {[%clk 0:02:55.5]} 10... Nc6 {[%clk 0:02:53.4]} 11. Bxc6+
{[%clk 0:02:54.6]} 11... bxc6 {[%clk 0:02:53.7]} 12. Nc3 {[%clk 0:02:52.7]}
12... Bf5 {[%clk 0:02:47]} 13. Na5 {[%clk 0:02:33.4]} 13... Rc8 {[%clk
0:02:32.2]} 14. Be3 {[%clk 0:02:26.9]} 14... Bb4 {[%clk 0:02:23.4]} 15. Nb7
{[%clk 0:02:21.8]} 15... Bxc2 {[%clk 0:02:15.3]} 16. Rc1 {[%clk 0:02:20.8]}
16... Bg6 {[%clk 0:02:14.9]} 17. Bxb6 {[%clk 0:02:13.3]} 17... axb6 {[%clk
0:02:13.9]} 18. O-O {[%clk 0:02:11]} 18... O-O {[%clk 0:02:09]} 19. a3 {[%clk
0:02:06.9]} 19... Be7 {[%clk 0:02:09]} 20. Rfd1 {[%clk 0:01:56]} 20... Rc7
{[%clk 0:02:04.6]} 21. Nd6 {[%clk 0:01:54.6]} 21... Rd8 {[%clk 0:02:03.9]} 22.
Nd5 {[%clk 0:01:42.1]} 22... Bxd6 {[%clk 0:01:51.2]} 23. Nxc7 {[%clk 0:01:38.4]}
23... Bxc7 {[%clk 0:01:52.1]} 24. Rxd8+ {[%clk 0:01:38.2]} 24... Bxd8 {[%clk
0:01:53]} 25. Rxc6 {[%clk 0:01:38.1]} 25... Kf8 {[%clk 0:01:49]} 26. Kf2 {[%clk
0:01:32.6]} 26... Ke7 {[%clk 0:01:46.2]} 27. b4 {[%clk 0:01:29.8]} 27... Kd7
{[%clk 0:01:43.2]} 28. Rc1 {[%clk 0:01:29.7]} 28... b5 {[%clk 0:01:30.4]} 29.
Ke2 {[%clk 0:01:17.4]} 29... Bb6 {[%clk 0:01:18.1]} 30. Ra1 {[%clk 0:01:05.9]}
30... Bc2 {[%clk 0:01:15.8]} 31. Rc1 {[%clk 0:01:03.3]} 31... Bb3 {[%clk
0:01:15.4]} 32. Rd1+ {[%clk 0:00:59.7]} 32... Bd4 {[%clk 0:01:15.1]} 33. Rd2
{[%clk 0:00:53.9]} 33... Ke6 {[%clk 0:01:11.3]} 34. f4 {[%clk 0:00:53.2]} 34...
f6 {[%clk 0:01:11.3]} 35. g4 {[%clk 0:00:52.6]} 35... Kd5 {[%clk 0:01:10.6]} 36.
g5 {[%clk 0:00:50]} 36... Ke4 {[%clk 0:01:05.9]} 37. fxe5 {[%clk 0:00:45.8]}
37... fxe5 {[%clk 0:01:03.8]} 38. Kf1 {[%clk 0:00:39.3]} 38... Kf3 {[%clk
0:01:01.6]} 39. Rd3+ {[%clk 0:00:38.3]} 39... Kf4 {[%clk 0:00:59.7]} 40. Rxb3
{[%clk 0:00:39.2]} 40... Kxg5 {[%clk 0:01:00.2]} 41. Ke2 {[%clk 0:00:37.7]}
41... Kf4 {[%clk 0:01:00.3]} 42. Rh3 {[%clk 0:00:36.3]} 42... h6 {[%clk
0:01:00]} 43. a4 {[%clk 0:00:26.1]} 43... bxa4 {[%clk 0:00:59.8]} 44. Rh4+
{[%clk 0:00:26]} 44... Kf5 {[%clk 0:00:58.8]} 45. b5 {[%clk 0:00:21.4]} 45... a3
{[%clk 0:00:52.2]} 46. Kd2 {[%clk 0:00:19.7]} 46... a2 {[%clk 0:00:51.8]} 0-1

[Event "Late-Titled-Tuesday-Blitz-July-09-2024"]
[Site "Chess.com"]
[Date "2024.07.09"]
[Round "1"]
[White "TigrVShlyape"]
[Black "JoJoZP"]
[Result "0-1"]
[WhiteElo "2959"]
[BlackElo "2516"]
[TimeControl "180+1"]
[EndTime "14:06:50 PDT"]
[Termination "JoJoZP won on time"]

1. d4 {[%clk 0:02:59.3]} 1... Nf6 {[%clk 0:02:59.9]} 2. Bf4 {[%clk 0:02:58.3]}
2... g6 {[%clk 0:02:59.6]} 3. c3 {[%clk 0:02:57.8]} 3... Bg7 {[%clk 0:02:59]} 4.
Nf3 {[%clk 0:02:58]} 4... O-O {[%clk 0:02:59.2]} 5. Nbd2 {[%clk 0:02:56.9]} 5...
d6 {[%clk 0:02:59.7]} 6. e4 {[%clk 0:02:56.3]} 6... Nbd7 {[%clk 0:02:55.6]} 7.
Bc4 {[%clk 0:02:51]} 7... a6 {[%clk 0:02:50.6]} 8. a4 {[%clk 0:02:49.9]} 8... b6
{[%clk 0:02:41]} 9. O-O {[%clk 0:02:48.7]} 9... Bb7 {[%clk 0:02:40.5]} 10. Re1
{[%clk 0:02:48.1]} 10... Nh5 {[%clk 0:02:35.9]} 11. Be3 {[%clk 0:02:43.3]} 11...
e5 {[%clk 0:02:35]} 12. Ba2 {[%clk 0:02:34.1]} 12... Kh8 {[%clk 0:02:30.1]} 13.
dxe5 {[%clk 0:02:27.6]} 13... dxe5 {[%clk 0:02:25.6]} 14. Ng5 {[%clk 0:02:24.5]}
14... Qe7 {[%clk 0:02:20.5]} 15. Qb3 {[%clk 0:02:23.8]} 15... Kg8 {[%clk
0:02:12.6]} 16. Qc4 {[%clk 0:02:16.2]} 16... h6 {[%clk 0:02:02.9]} 17. Ngf3
{[%clk 0:02:06.2]} 17... Rac8 {[%clk 0:01:59.3]} 18. b4 {[%clk 0:02:03.7]} 18...
Nhf6 {[%clk 0:01:53.9]} 19. h3 {[%clk 0:02:00.2]} 19... Rfd8 {[%clk 0:01:48.3]}
20. Rad1 {[%clk 0:01:47.5]} 20... Nf8 {[%clk 0:01:42.2]} 21. a5 {[%clk
0:01:35.7]} 21... b5 {[%clk 0:01:34.3]} 22. Qe2 {[%clk 0:01:33.8]} 22... N6d7
{[%clk 0:01:22.8]} 23. Nb3 {[%clk 0:01:29.8]} 23... Ne6 {[%clk 0:01:22.2]} 24.
Nfd2 {[%clk 0:00:47.9]} 24... c5 {[%clk 0:01:18.4]} 25. bxc5 {[%clk 0:00:39.3]}
25... Ndxc5 {[%clk 0:01:18.4]} 26. Nxc5 {[%clk 0:00:39]} 26... Nxc5 {[%clk
0:01:19.1]} 27. Bxc5 {[%clk 0:00:27.2]} 27... Qxc5 {[%clk 0:01:17.3]} 28. Qf3
{[%clk 0:00:24.5]} 28... Rf8 {[%clk 0:01:11.2]} 29. Bd5 {[%clk 0:00:19.9]} 29...
Bxd5 {[%clk 0:01:06.2]} 30. exd5 {[%clk 0:00:20.2]} 30... Qxc3 {[%clk
0:01:06.9]} 31. Qxc3 {[%clk 0:00:19.7]} 31... Rxc3 {[%clk 0:01:07.8]} 32. Ne4
{[%clk 0:00:19.7]} 32... Rc4 {[%clk 0:00:59.3]} 33. d6 {[%clk 0:00:18.5]} 33...
f5 {[%clk 0:00:56.2]} 34. Nd2 {[%clk 0:00:13.8]} 34... Rd4 {[%clk 0:00:56.2]}
35. Nb3 {[%clk 0:00:13.8]} 35... Rxd1 {[%clk 0:00:55.5]} 36. Rxd1 {[%clk
0:00:14.2]} 36... Rd8 {[%clk 0:00:50.6]} 37. Nc5 {[%clk 0:00:10.3]} 37... Bf8
{[%clk 0:00:48.3]} 38. Nb7 {[%clk 0:00:01.4]} 38... Rd7 {[%clk 0:00:48.1]} 39.
Nc5 {[%clk 0:00:01.4]} 39... Rxd6 {[%clk 0:00:46.2]} 0-1

[Event "Late-Titled-Tuesday-Blitz-July-09-2024"]
[Site "Chess.com"]
[Date "2024.07.09"]
[Round "1"]
[White "mac0504"]
[Black "Indefatigable11"]
[Result "1-0"]
[WhiteElo "2760"]
[BlackElo "2415"]
[TimeControl "180+1"]
[EndTime "14:06:52 PDT"]
[Termination "mac0504 won by checkmate"]

1. c4 {[%clk 0:02:56.7]} 1... e5 {[%clk 0:02:59.6]} 2. Nc3 {[%clk 0:02:55.2]}
2... Nf6 {[%clk 0:02:59.3]} 3. e3 {[%clk 0:02:55.8]} 3... Bb4 {[%clk 0:02:58.4]}
4. Nge2 {[%clk 0:02:55.5]} 4... O-O {[%clk 0:02:58.1]} 5. a3 {[%clk 0:02:55.1]}
5... Bxc3 {[%clk 0:02:56.7]} 6. Nxc3 {[%clk 0:02:56]} 6... c6 {[%clk 0:02:56]}
7. d4 {[%clk 0:02:56.2]} 7... exd4 {[%clk 0:02:56]} 8. Qxd4 {[%clk 0:02:57.1]}
8... d5 {[%clk 0:02:55.1]} 9. Be2 {[%clk 0:02:56.6]} 9... Be6 {[%clk 0:02:50.5]}
10. b4 {[%clk 0:02:56.7]} 10... dxc4 {[%clk 0:02:50.2]} 11. Qxd8 {[%clk
0:02:56.2]} 11... Rxd8 {[%clk 0:02:49.8]} 12. Bb2 {[%clk 0:02:57.1]} 12... Nbd7
{[%clk 0:02:49.6]} 13. f4 {[%clk 0:02:53.8]} 13... Nb6 {[%clk 0:02:49]} 14. e4
{[%clk 0:02:53]} 14... a5 {[%clk 0:02:43.1]} 15. f5 {[%clk 0:02:44]} 15... Bc8
{[%clk 0:02:40]} 16. g4 {[%clk 0:02:30.8]} 16... axb4 {[%clk 0:02:38.4]} 17.
axb4 {[%clk 0:02:31.7]} 17... Rxa1+ {[%clk 0:02:37.6]} 18. Bxa1 {[%clk
0:02:32.6]} 18... Nfd7 {[%clk 0:02:35]} 19. Kf2 {[%clk 0:02:16.6]} 19... Ne5
{[%clk 0:02:34.2]} 20. Ke3 {[%clk 0:02:17.2]} 20... f6 {[%clk 0:02:32.9]} 21. h4
{[%clk 0:02:08.7]} 21... Na8 {[%clk 0:02:22.9]} 22. Na4 {[%clk 0:02:01.4]} 22...
b5 {[%clk 0:02:08.5]} 23. Nc5 {[%clk 0:02:01.6]} 23... Nb6 {[%clk 0:02:08.5]}
24. Bd4 {[%clk 0:01:53.9]} 24... Na8 {[%clk 0:01:37.6]} 25. Ra1 {[%clk
0:01:47.3]} 25... Nc7 {[%clk 0:01:37.6]} 26. Ra7 {[%clk 0:01:46.6]} 26... Ne8
{[%clk 0:01:37.7]} 27. g5 {[%clk 0:01:38.1]} 27... Nd6 {[%clk 0:01:34.3]} 28.
gxf6 {[%clk 0:01:19.1]} 28... gxf6 {[%clk 0:01:33.7]} 29. Bh5 {[%clk 0:01:01.8]}
29... Rf8 {[%clk 0:00:59.7]} 30. Ne6 {[%clk 0:00:57.6]} 30... Bxe6 {[%clk
0:00:59.3]} 31. fxe6 {[%clk 0:00:58.4]} 31... Ng6 {[%clk 0:00:59.6]} 32. Bc5
{[%clk 0:00:51.7]} 32... Rd8 {[%clk 0:00:53.1]} 33. Bxg6 {[%clk 0:00:34.6]}
33... hxg6 {[%clk 0:00:37.1]} 34. Bxd6 {[%clk 0:00:23.3]} 34... Rxd6 {[%clk
0:00:29.2]} 35. Ra8+ {[%clk 0:00:23.4]} 35... Kg7 {[%clk 0:00:29.2]} 36. e7
{[%clk 0:00:24]} 36... Re6 {[%clk 0:00:29.4]} 37. e8=Q {[%clk 0:00:24.1]} 37...
Rxe8 {[%clk 0:00:30.1]} 38. Rxe8 {[%clk 0:00:24.6]} 38... Kh6 {[%clk 0:00:30.2]}
39. Rc8 {[%clk 0:00:24.7]} 39... Kh5 {[%clk 0:00:29.8]} 40. Rxc6 {[%clk
0:00:25]} 40... Kxh4 {[%clk 0:00:30.5]} 41. Rxf6 {[%clk 0:00:24.4]} 41... g5
{[%clk 0:00:30]} 42. e5 {[%clk 0:00:24.4]} 42... g4 {[%clk 0:00:30.9]} 43. e6
{[%clk 0:00:24.4]} 43... g3 {[%clk 0:00:31.8]} 44. e7 {[%clk 0:00:24]} 44... g2
{[%clk 0:00:32.7]} 45. Kf2 {[%clk 0:00:24.1]} 45... c3 {[%clk 0:00:33.5]} 46.
e8=Q {[%clk 0:00:24]} 46... c2 {[%clk 0:00:34.4]} 47. Qh8+ {[%clk 0:00:23.7]}
47... Kg5 {[%clk 0:00:34.5]} 48. Qg7+ {[%clk 0:00:24.2]} 48... Kh5 {[%clk
0:00:34.4]} 49. Rh6# {[%clk 0:00:25.1]} 1-0

[Event "Late-Titled-Tuesday-Blitz-July-09-2024"]
[Site "Chess.com"]
[Date "2024.07.09"]
[Round "1"]
[White "stollenmonster"]
[Black "falzehope0"]
[Result "1-0"]
[WhiteElo "2887"]
[BlackElo "2468"]
[TimeControl "180+1"]
[EndTime "14:06:54 PDT"]
[Termination "stollenmonster won on time"]

1. e4 {[%clk 0:03:00.9]} 1... d6 {[%clk 0:02:52.4]} 2. g3 {[%clk 0:03:00.7]}
2... Nf6 {[%clk 0:02:52.3]} 3. Bg2 {[%clk 0:03:00.8]} 3... Nbd7 {[%clk
0:02:52.9]} 4. Ne2 {[%clk 0:03:00.4]} 4... e5 {[%clk 0:02:53.3]} 5. O-O {[%clk
0:03:00.9]} 5... Be7 {[%clk 0:02:53.2]} 6. h3 {[%clk 0:03:01.1]} 6... O-O {[%clk
0:02:52.5]} 7. d4 {[%clk 0:03:01.7]} 7... c6 {[%clk 0:02:52.8]} 8. Re1 {[%clk
0:03:01.8]} 8... Qc7 {[%clk 0:02:53.3]} 9. c4 {[%clk 0:03:02.3]} 9... Re8 {[%clk
0:02:53.9]} 10. Nbc3 {[%clk 0:03:02.5]} 10... Nf8 {[%clk 0:02:54.1]} 11. Be3
{[%clk 0:03:02]} 11... Ng6 {[%clk 0:02:54.4]} 12. Qd2 {[%clk 0:03:02]} 12... Bd7
{[%clk 0:02:54.1]} 13. Rac1 {[%clk 0:03:01.6]} 13... Qc8 {[%clk 0:02:54.5]} 14.
Kh2 {[%clk 0:03:01.2]} 14... h6 {[%clk 0:02:54.3]} 15. f4 {[%clk 0:03:00.2]}
15... exf4 {[%clk 0:02:50.4]} 16. Nxf4 {[%clk 0:03:01.1]} 16... Nf8 {[%clk
0:02:45.4]} 17. Qd1 {[%clk 0:02:41.8]} 17... Bd8 {[%clk 0:02:42.5]} 18. Nh5
{[%clk 0:02:40]} 18... Ng6 {[%clk 0:02:30]} 19. Rf1 {[%clk 0:02:32.9]} 19... Nh7
{[%clk 0:02:25.5]} 20. h4 {[%clk 0:02:20.4]} 20... Bg4 {[%clk 0:01:53.4]} 21.
Bf3 {[%clk 0:02:19.9]} 21... Bh3 {[%clk 0:01:47.8]} 22. Bg2 {[%clk 0:02:17.6]}
22... Bg4 {[%clk 0:01:45.7]} 23. Bf3 {[%clk 0:02:18]} 23... Bh3 {[%clk
0:01:45.4]} 24. Rf2 {[%clk 0:02:18.7]} 24... Bd7 {[%clk 0:01:33.8]} 25. Qd2
{[%clk 0:02:08.9]} 25... Bg4 {[%clk 0:01:24.6]} 26. Rcf1 {[%clk 0:01:16.9]}
26... Rf8 {[%clk 0:01:09.9]} 27. Bxh6 {[%clk 0:01:05.9]} 27... Bxf3 {[%clk
0:01:02.2]} 28. Rxf3 {[%clk 0:01:04.9]} 28... Qg4 {[%clk 0:00:58.1]} 29. Nxg7
{[%clk 0:00:59.1]} 29... Bxh4 {[%clk 0:00:13.6]} 30. gxh4 {[%clk 0:00:48.7]}
30... Qxh4+ {[%clk 0:00:13.6]} 31. Rh3 {[%clk 0:00:46.8]} 31... Qg4 {[%clk
0:00:13.1]} 32. Nf5 {[%clk 0:00:42.5]} 32... Rfe8 {[%clk 0:00:04.7]} 33. Rg1
{[%clk 0:00:41.8]} 33... Qxh3+ {[%clk 0:00:03.4]} 34. Kxh3 {[%clk 0:00:41.9]}
34... Re6 {[%clk 0:00:03]} 35. d5 {[%clk 0:00:35.8]} 35... Re5 {[%clk
0:00:02.8]} 36. Bf4 {[%clk 0:00:33.6]} 1-0

[Event "Late-Titled-Tuesday-Blitz-July-09-2024"]
[Site "Chess.com"]
[Date "2024.07.09"]
[Round "1"]
[White "Charodej1"]
[Black "Bob_2004"]
[Result "0-1"]
[WhiteElo "2382"]
[BlackElo "2701"]
[TimeControl "180+1"]
[EndTime "14:06:54 PDT"]
[Termination "Bob_2004 won by resignation"]

1. e4 {[%clk 0:02:59.5]} 1... c5 {[%clk 0:02:59.4]} 2. Nf3 {[%clk 0:02:58.7]}
2... d6 {[%clk 0:02:59.5]} 3. d4 {[%clk 0:02:58.5]} 3... cxd4 {[%clk 0:03:00.4]}
4. Nxd4 {[%clk 0:02:58.9]} 4... Nf6 {[%clk 0:03:01.1]} 5. Nc3 {[%clk 0:02:58.7]}
5... Nc6 {[%clk 0:03:01.3]} 6. Bc4 {[%clk 0:02:56.3]} 6... g6 {[%clk 0:02:52.2]}
7. f3 {[%clk 0:02:50.3]} 7... Bg7 {[%clk 0:02:50.5]} 8. Be3 {[%clk 0:02:48.5]}
8... Bd7 {[%clk 0:02:50.7]} 9. Qd2 {[%clk 0:02:46.8]} 9... Rc8 {[%clk
0:02:50.6]} 10. Bb3 {[%clk 0:02:45.2]} 10... O-O {[%clk 0:02:49.7]} 11. O-O-O
{[%clk 0:02:44.6]} 11... Na5 {[%clk 0:02:48.3]} 12. g4 {[%clk 0:02:40.3]} 12...
Nc4 {[%clk 0:02:46.7]} 13. Bxc4 {[%clk 0:02:39.6]} 13... Rxc4 {[%clk 0:02:47.6]}
14. h4 {[%clk 0:02:37.8]} 14... h5 {[%clk 0:02:45.9]} 15. gxh5 {[%clk
0:02:14.9]} 15... Nxh5 {[%clk 0:02:46.8]} 16. Nde2 {[%clk 0:02:13.8]} 16... Qa5
{[%clk 0:02:26.6]} 17. Qd5 {[%clk 0:02:12.5]} 17... Qc7 {[%clk 0:02:20.7]} 18.
Rhg1 {[%clk 0:01:59.3]} 18... Kh7 {[%clk 0:02:03.2]} 19. f4 {[%clk 0:01:40.6]}
19... Rxc3 {[%clk 0:01:57.2]} 20. Nxc3 {[%clk 0:01:28.9]} 20... Bxc3 {[%clk
0:01:56.8]} 21. bxc3 {[%clk 0:01:28.7]} 21... Qxc3 {[%clk 0:01:57.1]} 22. Qd4
{[%clk 0:01:12.7]} 22... Qa3+ {[%clk 0:01:53.4]} 23. Kd2 {[%clk 0:01:12]} 23...
Rc8 {[%clk 0:01:49]} 24. f5 {[%clk 0:01:02.7]} 24... Nf6 {[%clk 0:01:33.6]} 25.
fxg6+ {[%clk 0:01:01.2]} 25... fxg6 {[%clk 0:01:34.5]} 26. h5 {[%clk 0:00:54.1]}
26... Ba4 {[%clk 0:01:18.5]} 27. hxg6+ {[%clk 0:00:38.2]} 27... Kg7 {[%clk
0:01:18]} 28. Rc1 {[%clk 0:00:28.1]} 28... Qxa2 {[%clk 0:01:11.5]} 29. Qd3
{[%clk 0:00:14.4]} 29... Qe6 {[%clk 0:00:51.8]} 30. Bd4 {[%clk 0:00:13.9]} 30...
a6 {[%clk 0:00:49.6]} 31. Rgf1 {[%clk 0:00:13.6]} 31... Bb5 {[%clk 0:00:49.2]}
32. c4 {[%clk 0:00:12.9]} 32... Bc6 {[%clk 0:00:41.4]} 33. Bxf6+ {[%clk
0:00:10.6]} 33... exf6 {[%clk 0:00:41.5]} 34. Rce1 {[%clk 0:00:10.9]} 34... Be8
{[%clk 0:00:39.2]} 35. Qd5 {[%clk 0:00:10.7]} 35... Qh3 {[%clk 0:00:32.3]} 36.
Qxb7+ {[%clk 0:00:09.8]} 36... Kg8 {[%clk 0:00:30.5]} 37. Qc6 {[%clk 0:00:09.2]}
37... Bxc6 {[%clk 0:00:30.3]} 0-1

[Event "Late-Titled-Tuesday-Blitz-July-09-2024"]
[Site "Chess.com"]
[Date "2024.07.09"]
[Round "1"]
[White "KChor05"]
[Black "SoCalJuniorChess"]
[Result "1-0"]
[WhiteElo "2615"]
[BlackElo "2280"]
[TimeControl "180+1"]
[EndTime "14:06:54 PDT"]
[Termination "KChor05 won by resignation"]

1. e4 {[%clk 0:03:00.3]} 1... d5 {[%clk 0:02:55.9]} 2. exd5 {[%clk 0:02:54.6]}
2... Qxd5 {[%clk 0:02:56.8]} 3. Nc3 {[%clk 0:02:53.5]} 3... Qd8 {[%clk
0:02:56.5]} 4. d4 {[%clk 0:02:53]} 4... Nf6 {[%clk 0:02:56.5]} 5. Nf3 {[%clk
0:02:52.8]} 5... Bg4 {[%clk 0:02:55.6]} 6. h3 {[%clk 0:02:43.7]} 6... Bxf3
{[%clk 0:02:55.1]} 7. Qxf3 {[%clk 0:02:44.1]} 7... c6 {[%clk 0:02:55.7]} 8. Be3
{[%clk 0:02:43.4]} 8... e6 {[%clk 0:02:54.9]} 9. O-O-O {[%clk 0:02:40.8]} 9...
Bb4 {[%clk 0:02:54.5]} 10. Ne4 {[%clk 0:02:37.2]} 10... Nbd7 {[%clk 0:02:39.2]}
11. Kb1 {[%clk 0:02:22.1]} 11... Qa5 {[%clk 0:02:31.6]} 12. Nxf6+ {[%clk
0:02:04.4]} 12... Nxf6 {[%clk 0:02:31.2]} 13. Bd3 {[%clk 0:01:51.9]} 13... O-O
{[%clk 0:02:07.9]} 14. c4 {[%clk 0:01:48.6]} 14... b5 {[%clk 0:01:53.1]} 15. c5
{[%clk 0:01:17.6]} 15... Nd5 {[%clk 0:01:48.3]} 16. Bc1 {[%clk 0:01:17.4]} 16...
Bc3 {[%clk 0:01:38.8]} 17. Be4 {[%clk 0:01:06.2]} 17... b4 {[%clk 0:01:04.8]}
18. h4 {[%clk 0:00:29.3]} 18... Rab8 {[%clk 0:00:59.6]} 19. h5 {[%clk
0:00:25.7]} 19... b3 {[%clk 0:00:57.6]} 20. a3 {[%clk 0:00:23]} 20... Bb4 {[%clk
0:00:57.7]} 21. Qg3 {[%clk 0:00:17.4]} 21... Bxa3 {[%clk 0:00:45.5]} 22. Bh6
{[%clk 0:00:17.5]} 22... g6 {[%clk 0:00:38.7]} 23. hxg6 {[%clk 0:00:17.5]} 23...
fxg6 {[%clk 0:00:22.1]} 24. Bxg6 {[%clk 0:00:16.3]} 24... Rf7 {[%clk 0:00:06.1]}
25. Bh5+ {[%clk 0:00:11.9]} 25... Kh8 {[%clk 0:00:05.3]} 26. Qxb8+ {[%clk
0:00:08.4]} 1-0

[Event "Late-Titled-Tuesday-Blitz-July-09-2024"]
[Site "Chess.com"]
[Date "2024.07.09"]
[Round "1"]
[White "SandwichOSaumon"]
[Black "scandalgod"]
[Result "0-1"]
[WhiteElo "2308"]
[BlackElo "2642"]
[TimeControl "180+1"]
[EndTime "14:06:56 PDT"]
[Termination "scandalgod won by checkmate"]

1. e4 {[%clk 0:02:58.8]} 1... e5 {[%clk 0:02:59.8]} 2. Nf3 {[%clk 0:02:58]} 2...
Nc6 {[%clk 0:03:00.4]} 3. Bb5 {[%clk 0:02:58]} 3... a6 {[%clk 0:02:59.8]} 4. Ba4
{[%clk 0:02:57.3]} 4... d6 {[%clk 0:02:59.8]} 5. O-O {[%clk 0:02:56.4]} 5... Bg4
{[%clk 0:02:59.6]} 6. c3 {[%clk 0:02:54.4]} 6... Qf6 {[%clk 0:02:59]} 7. d3
{[%clk 0:02:50.4]} 7... Ne7 {[%clk 0:02:56.6]} 8. Nbd2 {[%clk 0:02:49.8]} 8...
g5 {[%clk 0:02:55.1]} 9. Qe1 {[%clk 0:02:42.1]} 9... h5 {[%clk 0:02:49]} 10. d4
{[%clk 0:02:38.6]} 10... Bd7 {[%clk 0:02:21.4]} 11. d5 {[%clk 0:02:33]} 11...
Nb8 {[%clk 0:02:08.8]} 12. Bxd7+ {[%clk 0:02:31.4]} 12... Nxd7 {[%clk
0:02:08.1]} 13. Qe3 {[%clk 0:02:30.9]} 13... Bh6 {[%clk 0:01:58.6]} 14. Qd3
{[%clk 0:02:27]} 14... Nc5 {[%clk 0:01:55.9]} 15. Qc2 {[%clk 0:02:27.2]} 15...
g4 {[%clk 0:01:54.3]} 16. Ne1 {[%clk 0:02:26.5]} 16... Qg6 {[%clk 0:01:47.7]}
17. b4 {[%clk 0:02:22.4]} 17... Nd7 {[%clk 0:01:41.1]} 18. f3 {[%clk 0:02:20.1]}
18... Nf6 {[%clk 0:01:38.3]} 19. Qa4+ {[%clk 0:02:10.5]} 19... b5 {[%clk
0:01:33.7]} 20. Qa5 {[%clk 0:02:10.2]} 20... Be3+ {[%clk 0:01:30.3]} 21. Kh1
{[%clk 0:02:08.7]} 21... Bb6 {[%clk 0:01:29.1]} 22. Qa3 {[%clk 0:02:08.8]} 22...
h4 {[%clk 0:01:21.9]} 23. c4 {[%clk 0:01:50.6]} 23... h3 {[%clk 0:01:19.7]} 24.
g3 {[%clk 0:01:47.9]} 24... bxc4 {[%clk 0:01:04.9]} 25. Nxc4 {[%clk 0:01:46.9]}
25... gxf3 {[%clk 0:01:02.7]} 26. Qxf3 {[%clk 0:01:47.8]} 26... Nxe4 {[%clk
0:00:58]} 27. Nxb6 {[%clk 0:01:44.8]} 27... cxb6 {[%clk 0:00:58]} 28. Be3 {[%clk
0:01:38.3]} 28... Nxd5 {[%clk 0:00:45.4]} 29. Bg1 {[%clk 0:01:31.3]} 29... O-O
{[%clk 0:00:41.5]} 30. Rd1 {[%clk 0:01:31.4]} 30... Ndf6 {[%clk 0:00:30.3]} 31.
Bxb6 {[%clk 0:01:28.5]} 31... Rac8 {[%clk 0:00:29.6]} 32. Nd3 {[%clk 0:01:00.4]}
32... Rc2 {[%clk 0:00:26.9]} 33. a4 {[%clk 0:00:54]} 33... Rfc8 {[%clk
0:00:23.4]} 34. Be3 {[%clk 0:00:40.8]} 34... R8c3 {[%clk 0:00:20.6]} 35. Bd2
{[%clk 0:00:35.2]} 35... Ra3 {[%clk 0:00:17.3]} 36. Be1 {[%clk 0:00:28]} 36...
Raa2 {[%clk 0:00:16.8]} 37. Bc3 {[%clk 0:00:25.9]} 37... Rxh2+ {[%clk
0:00:15.3]} 38. Kg1 {[%clk 0:00:25.6]} 38... Rag2+ {[%clk 0:00:15.3]} 39. Qxg2
{[%clk 0:00:26.1]} 39... Rxg2+ {[%clk 0:00:15.5]} 40. Kh1 {[%clk 0:00:27]} 40...
Nxg3# {[%clk 0:00:15.7]} 0-1